[Event "3rd Sunway Formentera-A 2024"]
[Site "Formentera"]
[Date "2024.04.09"]
[Round "1.6"]
[White "Bauer, Thomas"]
[Black "Sosa, Tomas"]
[Result "0-1"]
[ECO "B07"]
[WhiteElo "2192"]
[BlackElo "2562"]
[Annotator "TA"]
[PlyCount "86"]
[EventDate "2024.04.03"]
[EventType "swiss"]
[EventCountry "ESP"]
[SourceTitle "playchess.com"]
[Source "ChessBase"]
[SourceQuality "1"]
[TimeControl "40/5400+30:1800+30"]

{[%evp 9,86,5,20,4,25,22,34,-8,10,25,20,16,19,0,28,15,45,53,43,42,43,62,61,54,66,22,27,0,40,35,41,43,39,0,81,16,29,-37,0,-214,10,-37,0,-195,0,-39,-39,-80,-22,-162,-154,-716,-702,-699,-673,-754,-374,-548,-546,-555,-551,-550,-557,-742,-732,-738,-753,-758,-753,-686,-695,-830,-814,-826,-804,-888,-881,-876,-569]} 1. e4 {[%emt 0:00:00]} e5 {[%emt 0:02:55]} 2. d4 {[%emt 0:00:08]} d6 {[%emt 0:00:30]} 3. Nc3 {[%emt 0:00:30]} Nf6 {[%emt 0:00:30]} 4. h3 {[%emt 0:00:30]} exd4 {[%emt 0:00:30]} 5. Qxd4 {[%emt 0:00:30]} Nc6 {[%emt 0:00:30]} 6. Bb5 {[%emt 0:00:30]} Bd7 {[%emt 0:00:30]} 7. Bxc6 {[%emt 0:00:30]} Bxc6 {[%emt 0:00:30]} 8. Bf4 {[%emt 0:00:30] White is slightly better.} Be7 {[%emt 0:03:39]} 9. O-O-O {[%emt 0:05:48]} O-O {[%emt 0:00:12]} 10. g4 {[%emt 0:01:01]} Re8 {[%emt 0:12:21]} 11. f3 {[%emt 0:03:31]} Nd7 {[%emt 0:03:10]} 12. Nge2 {[%emt 0:00:41]} Bg5 {[%emt 0:10:03]} 13. Kb1 {[%emt 0:02:49]} a5 {[%emt 0:12:29][%cal Ba7a5,Ba5a4,Ba4b3][%mdl 32]} 14. Qf2 {[%emt 0:14:20]} Bxf4 {[%emt 0:05:18]} 15. Nxf4 {[%emt 0:02:28]} b5 {[%emt 0:00:15]} 16. h4 {[%emt 0:01:59]} b4 {[%emt 0:09:05]} 17. Nce2 {[%emt 0:01:48]} a4 {[%emt 0:04:33]} 18. g5 {[%emt 0:05:34]} b3 {[%emt 0:01:34]} 19. cxb3 {[%emt 0:06:43]} axb3 {[%emt 0:00:01]} 20. a3 {[%emt 0:00:02]} Ne5 {[%emt 0:00:32][%cal Oe5f3]} 21. Nc3 {[%emt 0:03:14]} Ra5 {[%emt 0:04:42]} (21... f5 $1 $11 {remains equal.}) 22. Rhg1 {[%emt 0:06:27]} (22. Nfd5 $1 $16) 22... Qa8 {[%emt 0:00:30]} 23. Nh5 {[%emt 0:00:30]} (23. Nfd5 $11 Bxd5 24. Rxd5) 23... Qa7 {[%emt 0:00:30]} 24. Qe2 {[%emt 0:00:30]} (24. Qxa7 $11 {and White stays safe.} Rxa7 25. Rgf1) 24... Qa6 $2 {[%emt 0:00:30]} ({Black should try} 24... Ra8 $1 $19 {[%cal Oe5c4] Strongly threatening ...Nc4!} 25. f4 Nc4 26. Nf6+ (26. Qxc4 Rxa3 $19) 26... Kh8) 25. Qf2 {[%emt 0:00:30]} (25. Qxa6 $11 Rxa6 26. Rgf1) 25... Qa7 $2 {[%emt 0:00:30]} (25... Qc4 $15 26. Qe3 Kf8) 26. Qe2 $19 {[%emt 0:00:30] [#]} Qa6 $2 {[%emt 0:00:30]} (26... Ra8 $1 $19 {[%cal Oe5c4] Hoping for ...Nc4!} 27. f4 Nd3 28. Qxd3 Rxa3) 27. Qf2 {[%emt 0:00:30] f4 would now be deadly.} Qc4 {[%emt 0:00:30][%cal Oe5f3] ...Nxf3! is the strong threat.} 28. Rg2 {[%emt 0:00:30]} Rea8 {[%emt 0:00:30][%cal Oa5a3] Threatens to win with ...Rxa3! Black is more active.} (28... Rxa3 29. Nf6+ gxf6 30. gxf6+ Kf8 31. Qg1) 29. Qe3 {[%emt 0:00:30] [#]} (29. Nf4 $1 $11 {and White has nothing to worry.}) 29... Qb4 $1 {[%emt 0:00:30][%cal Oa5a3]} 30. Qf2 $2 {[%emt 0:00:30] [#] White does not recover from this.} (30. Nf6+ $17 Kh8 (30... gxf6 31. gxf6+) 31. Ncd5 (31. axb4 $2 Ra1#) (31. f4 $2 Rxa3 32. bxa3 Qxa3 $19)) 30... Rxa3 $1 {[%emt 0:00:30][%mdl 512]} 31. bxa3 {[%emt 0:00:30]} Qxc3 {[%emt 0:00:30]} 32. Nf6+ {[%emt 0:00:30]} Kh8 {[%emt 0:00:30]} (32... gxf6 $142 33. gxf6+ Kh8) 33. Qe1 {[%emt 0:00:30]} (33. Qd4 $142 Qxd4 (33... Qxf3 $2 34. Rf2 $19) 34. Rxd4 gxf6 35. gxf6 Nxf3 (35... Rxa3 $2 36. Rb4 $19) 36. Rb4) 33... Qxe1 {[%emt 0:00:30] Black is clearly winning.} 34. Rxe1 {[%emt 0:00:30]} gxf6 {[%emt 0:00:30]} 35. Rc1 {[%emt 0:00:30]} f5 {[%emt 0:00:30]} 36. Rc3 {[%emt 0:00:30]} fxe4 {[%emt 0:00:30]} 37. f4 {[%emt 0:00:30]} e3 {[%emt 0:23:30]} 38. Re2 {[%emt 0:41:19]} Be4+ {[%emt 0:00:22]} 39. Kb2 {[%emt 0:00:08]} Nd3+ {[%emt 0:00:43]} 40. Kxb3 {[%emt 0:00:00]} Rb8+ {[%emt 0:00:00]} 41. Kc4 {[%emt 0:03:27]} Nxf4 {[%emt 0:03:51] ( -> ...Bd5+)} 42. Rexe3 {[%emt 0:00:30]} Bd5+ {[%emt 0:07:55]} 43. Kd4 {[%emt 0:02:32]} c5+ {[%emt 0:00:30] Weighted Error Value: White=0.57/Black=0.36.  Loses game:     	White=2     	---        Missed win:     	---       	Black=2      Mistake:       	White=4     	Black=2      Inaccurate:     	White=7     	Black=4      OK:         	White=10    	Black=8      Best:        	---       	Black=1      Brilliant:      	---       	Black=1} 0-1

[Event "3rd Sunway Formentera-A 2024"]
[Site "Formentera"]
[Date "2024.04.09"]
[Round "1.7"]
[White "Doluhanova, Evgeniya"]
[Black "Prado, Alexandra"]
[Result "1-0"]
[ECO "B07"]
[WhiteElo "2273"]
[BlackElo "1839"]
[Annotator "RC"]
[PlyCount "143"]
[EventDate "2024.04.03"]
[EventType "swiss"]
[EventCountry "ESP"]
[SourceTitle "playchess.com"]
[Source "ChessBase"]
[SourceQuality "1"]
[TimeControl "40/5400+30:1800+30"]

1. Nf3 {[%emt 0:00:13]} g6 {[%emt 0:00:55]} 2. d4 {[%emt 0:00:17]} Nf6 {[%emt 0:00:45]} 3. Nbd2 {[%emt 0:00:11]} Bg7 {[%emt 0:01:37]} 4. e4 {[%emt 0:00:08]} d6 {[%emt 0:01:43]} 5. Bb5+ {[%emt 0:02:22]} c6 {[%emt 0:05:44]} 6. Bd3 {[%emt 0:00:08]} O-O {[%emt 0:00:29]} 7. O-O {[%emt 0:04:47]} Nbd7 {[%emt 0:12:15]} 8. a4 {[%emt 0:00:59]} Qc7 {[%emt 0:04:14]} 9. b3 {[%emt 0:01:17]} c5 {[%emt 0:02:27]} 10. Bb2 {[%emt 0:04:00]} cxd4 {[%emt 0:02:23]} 11. Nxd4 {[%emt 0:00:23]} Nc5 {[%emt 0:09:12]} 12. Rc1 {[%emt 0:03:38]} d5 {[%emt 0:06:31]} 13. exd5 {[%emt 0:06:55]} Nxd3 {[%emt 0:02:56]} 14. cxd3 {[%emt 0:00:09]} Qd8 {[%emt 0:06:45]} 15. d6 {[%emt 0:13:01]} Qxd6 {[%emt 0:03:38]} 16. Nc4 {[%emt 0:16:24]} Qf4 {[%emt 0:01:08]} 17. g3 {[%emt 0:10:08]} Qc7 {[%emt 0:15:46]} 18. Re1 {[%emt 0:03:50]} Qd8 {[%emt 0:04:03]} 19. Qe2 {[%emt 0:11:09]} Re8 {[%emt 0:03:32]} 20. Ne5 {[%emt 0:04:12]} e6 {[%emt 0:07:59]} 21. Nb5 {[%emt 0:01:52]} Nd5 {[%emt 0:00:51]} 22. Ba3 {[%emt 0:00:52]} Bf8 {[%emt 0:02:54]} 23. Qf3 {[%emt 0:05:20]} f6 {[%emt 0:00:25]} 24. Bxf8 {[%emt 0:00:26]} Rxf8 {[%emt 0:00:21]} 25. Nc4 {[%emt 0:00:21]} e5 {[%emt 0:02:25]} 26. Ncd6 {[%emt 0:01:55]} Be6 {[%emt 0:01:08]} 27. Nxb7 {[%emt 0:00:20]} Qe7 {[%emt 0:00:50]} 28. Nc5 {[%emt 0:01:26]} a6 {[%emt 0:00:26]} 29. Nxe6 {[%emt 0:01:07]} Qxe6 {[%emt 0:00:10]} 30. Nd4 {[%emt 0:04:58]} Qd7 {[%emt 0:00:23]} 31. Nc6 {[%emt 0:00:30]} Nc7 {[%emt 0:01:24]} 32. d4 {[%emt 0:00:55]} Ne6 {[%emt 0:00:15]} 33. dxe5 {[%emt 0:01:36]} Ng5 {[%emt 0:00:17]} 34. Qd1 {[%emt 0:01:03]} Qxd1 {[%emt 0:00:52]} 35. Rexd1 {[%emt 0:00:06]} fxe5 {[%emt 0:00:07]} 36. Kg2 {[%emt 0:00:34]} e4 {[%emt 0:00:41]} 37. Re1 {[%emt 0:00:27]} Rfe8 {[%emt 0:00:44]} 38. Rc4 {[%emt 0:00:31]} Re6 {[%emt 0:00:37]} 39. h4 {[%emt 0:00:39]} Nf3 {[%emt 0:00:13]} 40. Rexe4 {[%emt 0:00:00]} Ne1+ {[%emt 0:00:00]} 41. Kf1 {[%emt 0:00:52]} Rae8 {[%emt 0:04:59]} 42. Rxe6 {[%emt 0:00:23]} Rxe6 {[%emt 0:00:01]} 43. Nd4 {[%emt 0:00:15]} Re4 {[%emt 0:00:30]} 44. Rc8+ {[%emt 0:03:09]} Kg7 {[%emt 0:05:51]} 45. Rc7+ {[%emt 0:00:06]} Kg8 {[%emt 0:02:56]} 46. Nc2 {[%emt 0:00:48]} Nf3 {[%emt 0:00:28]} 47. b4 {[%emt 0:01:15]} Nd2+ {[%emt 0:02:19]} 48. Kg2 {[%emt 0:00:08]} Nb3 {[%emt 0:04:11]} 49. Rc3 {[%emt 0:01:06]} Nd2 {[%emt 0:01:54]} 50. Rd3 {[%emt 0:02:41]} Nb1 {[%emt 0:01:12]} 51. b5 {[%emt 0:01:37]} Re6 {[%emt 0:01:35]} 52. Rd8+ {[%emt 0:01:29]} Kg7 {[%emt 0:00:22]} 53. Nd4 {[%emt 0:00:14]} Rf6 {[%emt 0:00:34]} 54. Ra8 {[%emt 0:03:53]} axb5 {[%emt 0:02:01]} 55. axb5 {[%emt 0:00:23]} Nc3 {[%emt 0:01:15]} 56. Ra6 {[%emt 0:00:18]} Nxb5 {[%emt 0:01:19]} 57. Rxf6 {[%emt 0:00:19]} Nxd4 {[%emt 0:00:07]} 58. Rb6 {[%emt 0:00:08]} Nf5 {[%emt 0:01:29]} 59. Kh3 {[%emt 0:00:12]} h5 {[%emt 0:00:20]} 60. f3 {[%emt 0:00:16]} Nd4 {[%emt 0:00:44]} 61. Kg2 {[%emt 0:00:05]} Nf5 {[%emt 0:00:10]} 62. Kf2 {[%emt 0:00:24]} Kf7 {[%emt 0:00:18]} 63. Rb5 {[%emt 0:00:24]} Nd4 {[%emt 0:00:54]} 64. Rd5 {[%emt 0:00:17]} Nc6 {[%emt 0:00:49]} 65. Rc5 {[%emt 0:00:26]} Nd4 {[%emt 0:00:32]} 66. Ke3 {[%emt 0:00:18]} Nf5+ {[%emt 0:01:58]} 67. Kf4 {[%emt 0:00:50]} Nd4 {[%emt 0:00:16]} 68. Ke4 {[%emt 0:00:21]} Ne2 {[%emt 0:01:32]} 69. g4 {[%emt 0:00:18]} Kf6 {[%emt 0:03:15]} 70. Ke3 {[%emt 0:00:17]} Ng1 {[%emt 0:01:09]} 71. g5+ {[%emt 0:00:16]} Kf7 {[%emt 0:00:19]} 72. Rc1 {[%emt 0:00:10]} 1-0

[Event "3rd Sunway Formentera-A 2024"]
[Site "Formentera"]
[Date "2024.04.09"]
[Round "1.8"]
[White "Zhu, Hengyi"]
[Black "Stark, John"]
[Result "1/2-1/2"]
[ECO "B15"]
[WhiteElo "2282"]
[BlackElo "1954"]
[Annotator "RC"]
[PlyCount "82"]
[EventDate "2024.04.03"]
[EventType "swiss"]
[EventCountry "ESP"]
[SourceTitle "playchess.com"]
[Source "ChessBase"]
[SourceQuality "1"]
[TimeControl "40/5400+30:1800+30"]

1. d4 {[%emt 0:00:00]} c6 {[%emt 0:00:00]} 2. e4 {[%emt 0:00:22]} d5 {[%emt 0:00:26]} 3. Nd2 {[%emt 0:00:30]} dxe4 {[%emt 0:00:30]} 4. Nxe4 {[%emt 0:00:30]} Nf6 {[%emt 0:00:30]} 5. Nxf6+ {[%emt 0:00:30]} exf6 {[%emt 0:00:30]} 6. c3 {[%emt 0:00:30]} Bd6 {[%emt 0:00:30]} 7. Bd3 {[%emt 0:00:30]} O-O {[%emt 0:00:30]} 8. Qc2 {[%emt 0:00:30]} Re8+ {[%emt 0:00:30]} 9. Ne2 {[%emt 0:00:00]} h5 {[%emt 0:04:24]} 10. O-O {[%emt 0:00:00]} Qc7 {[%emt 0:04:31]} 11. h3 {[%emt 0:05:53]} Nd7 {[%emt 0:05:12]} 12. Be3 {[%emt 0:01:33]} Nf8 {[%emt 0:00:46]} 13. Rfe1 {[%emt 0:00:42]} Bd7 {[%emt 0:04:06]} 14. Rad1 {[%emt 0:01:30]} Ne6 {[%emt 0:04:20]} 15. d5 {[%emt 0:15:32]} Nf4 {[%emt 0:23:44]} 16. Bh7+ {[%emt 0:04:07]} Kh8 {[%emt 0:01:14]} 17. Bxf4 {[%emt 0:00:55]} Bxf4 {[%emt 0:01:04]} 18. Bf5 {[%emt 0:07:52]} Be5 {[%emt 0:13:03]} 19. Bxd7 {[%emt 0:05:41]} Qxd7 {[%emt 0:00:11]} 20. c4 {[%emt 0:00:41]} Qc7 {[%emt 0:08:52]} 21. b3 {[%emt 0:11:54]} Rad8 {[%emt 0:04:24]} 22. dxc6 {[%emt 0:02:02]} Qxc6 {[%emt 0:01:44]} 23. Nc3 {[%emt 0:04:09]} Rxd1 {[%emt 0:08:28]} 24. Rxd1 {[%emt 0:00:43]} Bxc3 {[%emt 0:00:05]} 25. Qxc3 {[%emt 0:00:07]} g6 {[%emt 0:03:24]} 26. Qb4 {[%emt 0:02:39]} Kg7 {[%emt 0:00:53]} 27. Rd6 {[%emt 0:02:05]} Qe4 {[%emt 0:01:46]} 28. Rd7 {[%emt 0:06:39]} Qb1+ {[%emt 0:01:00]} 29. Kh2 {[%emt 0:00:02]} Qf5 {[%emt 0:00:59]} 30. Qd2 {[%emt 0:00:11]} Re4 {[%emt 0:04:24]} 31. Rd5 {[%emt 0:06:05]} Qe6 {[%emt 0:00:07]} 32. a4 {[%emt 0:00:07]} a6 {[%emt 0:01:08]} 33. a5 {[%emt 0:03:58]} Re2 {[%emt 0:01:40]} 34. Qf4 {[%emt 0:00:52]} Re5 {[%emt 0:01:43]} 35. Qd4 {[%emt 0:01:59]} Rxd5 {[%emt 0:00:40]} 36. cxd5 {[%emt 0:00:06]} Qd6+ {[%emt 0:00:17]} 37. Kg1 {[%emt 0:00:14]} Kf8 {[%emt 0:00:40]} 38. Qe4 {[%emt 0:04:45]} Qe7 {[%emt 0:00:40]} 39. Qc4 {[%emt 0:01:44]} Qe1+ {[%emt 0:00:32]} 40. Kh2 {[%emt 0:00:00]} Qxf2 {[%emt 0:00:00]} 41. d6 {[%emt 0:05:56]} h4 {[%emt 0:01:53]} 1/2-1/2

[Event "3rd Sunway Formentera-A 2024"]
[Site "Formentera"]
[Date "2024.04.09"]
[Round "1.9"]
[White "Adarsh Tripathi"]
[Black "Botez, Alexandra"]
[Result "1-0"]
[ECO "D00"]
[WhiteElo "2304"]
[BlackElo "1970"]
[Annotator "RC"]
[PlyCount "51"]
[EventDate "2024.04.03"]
[EventType "swiss"]
[EventCountry "ESP"]
[SourceTitle "playchess.com"]
[Source "ChessBase"]
[SourceQuality "1"]
[TimeControl "40/5400+30:1800+30"]

1. d4 {[%emt 0:00:00]} Nf6 {[%emt 0:01:21]} 2. Nc3 {[%emt 0:00:17]} d5 {[%emt 0:00:30]} 3. Bf4 {[%emt 0:00:30]} e6 {[%emt 0:00:30]} 4. Nb5 {[%emt 0:00:30]} Na6 {[%emt 0:00:30]} 5. e3 {[%emt 0:00:30]} Bb4+ {[%emt 0:00:30]} 6. c3 {[%emt 0:00:30]} Be7 {[%emt 0:00:30]} 7. a4 {[%emt 0:00:30]} O-O {[%emt 0:12:17]} 8. Bd3 {[%emt 0:02:32]} c6 {[%emt 0:00:30]} 9. Na3 {[%emt 0:00:30]} c5 {[%emt 0:05:04]} 10. Nb5 {[%emt 0:01:36]} c4 {[%emt 0:05:36]} 11. Bc2 {[%emt 0:03:00]} Bd7 {[%emt 0:00:47]} 12. Nf3 {[%emt 0:02:08]} Bxb5 {[%emt 0:02:12]} 13. axb5 {[%emt 0:00:07]} Nb8 {[%emt 0:00:30]} 14. Qb1 {[%emt 0:00:30]} Qb6 {[%emt 0:00:30]} 15. g4 {[%emt 0:00:30]} Ne4 {[%emt 0:00:30]} 16. Ne5 {[%emt 0:00:30]} f5 {[%emt 0:00:30]} 17. gxf5 {[%emt 0:00:30]} exf5 {[%emt 0:17:45]} 18. Rg1 {[%emt 0:10:47]} Kh8 {[%emt 0:00:58]} 19. Bxe4 {[%emt 0:01:19]} fxe4 {[%emt 0:02:07]} 20. Qd1 {[%emt 0:00:08]} Qe6 {[%emt 0:28:36]} 21. Qh5 {[%emt 0:00:12]} Nd7 {[%emt 0:01:09]} 22. Ng6+ {[%emt 0:01:19]} Kg8 {[%emt 0:00:06]} 23. Qxd5 {[%emt 0:01:37]} Kf7 {[%emt 0:02:07]} 24. Nh8+ {[%emt 0:01:05]} Rxh8 {[%emt 0:00:30]} 25. Rxg7+ {[%emt 0:00:30]} Kxg7 {[%emt 0:00:25]} 26. Qxe6 {[%emt 0:00:00]} 1-0

[Event "3rd Sunway Formentera-A 2024"]
[Site "Formentera"]
[Date "2024.04.09"]
[Round "1.10"]
[White "Lesniewski, Lucas"]
[Black "Mekhane, Adam"]
[Result "0-1"]
[ECO "E08"]
[WhiteElo "1975"]
[BlackElo "2307"]
[Annotator "RC"]
[PlyCount "94"]
[EventDate "2024.04.03"]
[EventType "swiss"]
[EventCountry "ESP"]
[SourceTitle "playchess.com"]
[Source "ChessBase"]
[SourceQuality "1"]
[TimeControl "40/5400+30:1800+30"]

1. d4 Nf6 {[%emt 0:00:30]} 2. Nf3 e6 {[%emt 0:00:30]} 3. c4 {[%emt 0:00:39]} Bb4+ {[%emt 0:02:10]} 4. Bd2 {[%emt 0:01:22]} a5 {[%emt 0:00:40]} 5. g3 {[%emt 0:01:47]} d5 {[%emt 0:01:29]} 6. Bg2 {[%emt 0:05:41]} O-O {[%emt 0:00:23]} 7. O-O {[%emt 0:03:45]} Be7 {[%emt 0:00:33]} 8. Qc2 {[%emt 0:01:04]} c6 {[%emt 0:00:26]} 9. Bf4 {[%emt 0:03:11]} Nbd7 {[%emt 0:01:09]} 10. Nbd2 {[%emt 0:01:56]} Nh5 {[%emt 0:04:44]} 11. Be3 {[%emt 0:02:20]} f5 {[%emt 0:01:23]} 12. Nb3 {[%emt 0:07:13]} Bd6 {[%emt 0:10:22]} 13. Rad1 {[%emt 0:07:31]} Qe7 {[%emt 0:04:37]} 14. Bd2 {[%emt 0:04:50]} Bc7 {[%emt 0:27:51]} 15. Nc1 {[%emt 0:03:35]} Nhf6 {[%emt 0:03:11]} 16. Nd3 {[%emt 0:01:20]} Ne4 {[%emt 0:03:00]} 17. Bf4 {[%emt 0:05:34]} Bxf4 {[%emt 0:03:06]} 18. Nxf4 {[%emt 0:00:27]} g5 {[%emt 0:09:25]} 19. Nd3 {[%emt 0:00:32]} g4 {[%emt 0:04:38]} 20. Nfe5 {[%emt 0:00:41]} Nxe5 {[%emt 0:05:21]} 21. Nxe5 {[%emt 0:00:54]} Nf6 {[%emt 0:01:02]} 22. f3 {[%emt 0:05:29]} Qg7 {[%emt 0:02:29]} 23. c5 {[%emt 0:05:43]} h5 {[%emt 0:01:50]} 24. Qd2 {[%emt 0:02:14]} Nd7 {[%emt 0:01:01]} 25. f4 {[%emt 0:04:55]} Qh6 {[%emt 0:04:04]} 26. Kf2 {[%emt 0:02:38]} h4 {[%emt 0:01:27]} 27. Rfe1 {[%emt 0:00:18]} Nf6 {[%emt 0:01:14]} 28. Qe3 {[%emt 0:07:51]} Kg7 {[%emt 0:02:21]} 29. Rd3 {[%emt 0:04:02]} Rh8 {[%emt 0:00:52]} 30. Ra3 {[%emt 0:03:30]} Bd7 {[%emt 0:00:44]} 31. Rb3 {[%emt 0:02:58]} Rab8 {[%emt 0:00:40]} 32. Rb6 {[%emt 0:01:21]} hxg3+ {[%emt 0:01:14]} 33. hxg3 {[%emt 0:00:44]} Ne4+ {[%emt 0:01:36]} 34. Bxe4 {[%emt 0:02:26]} dxe4 {[%emt 0:00:02]} 35. Nxd7 {[%emt 0:02:49]} Qh2+ {[%emt 0:00:04]} 36. Kf1 {[%emt 0:00:12]} Qh3+ {[%emt 0:00:23]} 37. Kf2 {[%emt 0:00:09]} Qh2+ {[%emt 0:00:06]} 38. Kf1 {[%emt 0:00:03]} Rh3 {[%emt 0:02:02]} 39. Qg1 {[%emt 0:06:49]} Rbh8 {[%emt 0:00:27]} 40. Qxh2 {[%emt 0:00:00]} Rxh2 {[%emt 0:00:00]} 41. e3 {[%emt 0:11:16]} Rc2 {[%emt 0:11:42]} 42. Kg1 {[%emt 0:00:23]} Rh3 {[%emt 0:01:00]} 43. Ne5 {[%emt 0:01:27]} Rxg3+ {[%emt 0:01:17]} 44. Kf1 {[%emt 0:02:44]} Rgg2 {[%emt 0:02:26]} 45. Rxb7+ {[%emt 0:01:34]} Kh6 {[%emt 0:00:37]} 46. Rc1 {[%emt 0:02:29]} Rcf2+ {[%emt 0:00:29]} 47. Ke1 {[%emt 0:00:02]} g3 {[%emt 0:00:17]} 0-1

[Event "3rd Sunway Formentera-A 2024"]
[Site "Formentera"]
[Date "2024.04.09"]
[Round "1.11"]
[White "Botez, Andrea"]
[Black "Valuet, Bertrand"]
[Result "0-1"]
[ECO "D00"]
[WhiteElo "1879"]
[BlackElo "2281"]
[Annotator "RC"]
[PlyCount "88"]
[EventDate "2024.04.03"]
[EventType "swiss"]
[EventCountry "ESP"]
[SourceTitle "playchess.com"]
[Source "ChessBase"]
[SourceQuality "1"]
[TimeControl "40/5400+30:1800+30"]

1. d4 {[%emt 0:02:49]} Nf6 {[%emt 0:00:10]} 2. Nc3 {[%emt 0:00:13]} d5 {[%emt 0:00:15]} 3. Bf4 {[%emt 0:00:08]} c5 {[%emt 0:12:06]} 4. e3 {[%emt 0:02:22]} c4 {[%emt 0:00:04]} 5. e4 {[%emt 0:20:54]} e6 {[%emt 0:12:26]} 6. a3 {[%emt 0:06:02]} Nc6 {[%emt 0:00:44]} 7. Be3 {[%emt 0:15:13]} b5 {[%emt 0:14:49]} 8. e5 {[%emt 0:09:14]} Nd7 {[%emt 0:00:54]} 9. Nh3 {[%emt 0:19:13]} Rb8 {[%emt 0:09:08]} 10. Be2 {[%emt 0:04:56]} b4 {[%emt 0:12:58]} 11. axb4 {[%emt 0:00:27]} Rxb4 {[%emt 0:00:07]} 12. Ra2 {[%emt 0:01:45]} Qb6 {[%emt 0:14:20]} 13. O-O {[%emt 0:02:11]} Qb8 {[%emt 0:10:45]} 14. Qa1 {[%emt 0:01:18]} Be7 {[%emt 0:01:34]} 15. Bf3 {[%emt 0:07:04]} Nb6 {[%emt 0:01:36]} 16. g3 {[%emt 0:01:27]} f6 {[%emt 0:00:50]} 17. exf6 {[%emt 0:02:32]} Bxf6 {[%emt 0:00:03]} 18. Ne2 {[%emt 0:00:54]} e5 {[%emt 0:00:18]} 19. c3 {[%emt 0:00:09]} Bxh3 {[%emt 0:00:57]} 20. cxb4 {[%emt 0:00:35]} Bxf1 {[%emt 0:00:15]} 21. Kxf1 {[%emt 0:00:19]} exd4 {[%emt 0:01:29]} 22. b5 {[%emt 0:00:34]} Nb4 {[%emt 0:00:57]} 23. Bf4 {[%emt 0:00:11]} Qc8 {[%emt 0:00:43]} 24. Rxa7 {[%emt 0:00:30]} O-O {[%emt 0:00:19]} 25. Qa5 {[%emt 0:01:02]} d3 {[%emt 0:01:32]} 26. Nc3 {[%emt 0:00:28]} d4 {[%emt 0:01:29]} 27. Qxb4 {[%emt 0:00:31]} dxc3 {[%emt 0:00:16]} 28. bxc3 {[%emt 0:00:15]} Qh3+ {[%emt 0:00:39]} 29. Bg2 {[%emt 0:00:04]} Qe6 {[%emt 0:00:26]} 30. Ra6 {[%emt 0:01:25]} Qe2+ {[%emt 0:00:48]} 31. Kg1 {[%emt 0:00:01]} Qe1+ {[%emt 0:01:08]} 32. Bf1 {[%emt 0:00:02]} Be7 {[%emt 0:00:15]} 33. Qb2 {[%emt 0:00:45]} Rxf4 {[%emt 0:00:56]} 34. Ra1 {[%emt 0:01:10]} d2 {[%emt 0:00:29]} 35. gxf4 {[%emt 0:00:43]} d1=Q {[%emt 0:00:05]} 36. Rxd1 {[%emt 0:00:04]} Qxd1 {[%emt 0:00:08]} 37. Qe2 {[%emt 0:00:54]} Qxe2 {[%emt 0:00:19]} 38. Bxe2 {[%emt 0:00:03]} Bf6 {[%emt 0:00:16]} 39. Kg2 {[%emt 0:00:37]} Bxc3 {[%emt 0:00:14]} 40. Kf3 {[%emt 0:00:00]} Bd4 {[%emt 0:00:00]} 41. Bd1 {[%emt 0:00:47]} Kf7 {[%emt 0:00:54]} 42. Bc2 {[%emt 0:00:15]} h6 {[%emt 0:00:27]} 43. Ke2 {[%emt 0:00:52]} Ke7 {[%emt 0:00:16]} 44. f5 {[%emt 0:00:46]} Kd6 {[%emt 0:00:21]} 0-1

[Event "3rd Sunway Formentera-A 2024"]
[Site "Formentera"]
[Date "2024.04.09"]
[Round "1.12"]
[White "Tsatsalashvili, Keti"]
[Black "Sereinig, Eduard"]
[Result "1-0"]
[ECO "E97"]
[WhiteElo "2315"]
[BlackElo "1990"]
[Annotator "RC"]
[PlyCount "77"]
[EventDate "2024.04.03"]
[EventType "swiss"]
[EventCountry "ESP"]
[SourceTitle "playchess.com"]
[Source "ChessBase"]
[SourceQuality "1"]
[TimeControl "40/5400+30:1800+30"]

1. d4 {[%emt 0:00:00]} Nf6 {[%emt 0:00:08]} 2. c4 {[%emt 0:00:00]} g6 {[%emt 0:00:30]} 3. Nc3 {[%emt 0:00:17]} Bg7 {[%emt 0:00:30]} 4. e4 {[%emt 0:00:30]} d6 {[%emt 0:00:30]} 5. Nf3 {[%emt 0:00:30]} O-O {[%emt 0:02:53]} 6. Be2 {[%emt 0:01:35]} e5 {[%emt 0:00:32]} 7. O-O {[%emt 0:00:36]} Nc6 {[%emt 0:01:35]} 8. d5 {[%emt 0:00:14]} Ne7 {[%emt 0:00:30]} 9. Nd2 {[%emt 0:00:30]} Nd7 {[%emt 0:00:30]} 10. b4 {[%emt 0:00:30]} f5 {[%emt 0:00:30]} 11. a4 {[%emt 0:00:30]} a5 {[%emt 0:00:30]} 12. bxa5 {[%emt 0:00:30]} Nc5 {[%emt 0:12:49]} 13. Ba3 {[%emt 0:03:04]} Nxe4 {[%emt 0:08:57]} 14. Ndxe4 {[%emt 0:01:47]} fxe4 {[%emt 0:01:25]} 15. Nxe4 {[%emt 0:00:14]} Bf5 {[%emt 0:05:47]} 16. Bd3 {[%emt 0:01:46]} Rxa5 {[%emt 0:01:46]} 17. Bb4 {[%emt 0:01:37]} Ra8 {[%emt 0:00:30]} 18. a5 {[%emt 0:00:30]} Bxe4 {[%emt 0:00:30]} 19. Bxe4 {[%emt 0:00:30]} Nf5 {[%emt 0:13:41]} 20. Bxf5 {[%emt 0:06:37]} gxf5 {[%emt 0:04:09]} 21. Bc3 {[%emt 0:02:03]} f4 {[%emt 0:20:28]} 22. f3 {[%emt 0:11:23]} Bf6 {[%emt 0:02:29]} 23. Qe2 {[%emt 0:01:53]} Qd7 {[%emt 0:02:41]} 24. Rfb1 {[%emt 0:01:06]} Rab8 {[%emt 0:04:53]} 25. Qe4 {[%emt 0:02:04]} Kh8 {[%emt 0:00:30]} 26. Ra2 {[%emt 0:00:30]} c6 {[%emt 0:00:30]} 27. Rab2 {[%emt 0:00:30]} cxd5 {[%emt 0:00:30]} 28. Qxd5 {[%emt 0:00:30]} Qf5 {[%emt 0:05:34]} 29. a6 {[%emt 0:09:52]} b6 {[%emt 0:00:30]} 30. a7 {[%emt 0:00:30]} Ra8 {[%emt 0:01:33]} 31. Qxd6 {[%emt 0:04:21]} Rfd8 {[%emt 0:00:36]} 32. Qxb6 {[%emt 0:00:15]} Bg7 {[%emt 0:01:19]} 33. Qf2 {[%emt 0:08:07]} Qd3 {[%emt 0:00:30]} 34. Rb8 {[%emt 0:00:30]} Qxc3 {[%emt 0:00:30]} 35. Rxa8 {[%emt 0:00:30]} Rxa8 {[%emt 0:06:16]} 36. Rb8+ {[%emt 0:01:11]} Bf8 {[%emt 0:00:08]} 37. Rxa8 {[%emt 0:00:29]} Kg7 {[%emt 0:00:30]} 38. g3 {[%emt 0:00:30]} Qb4 {[%emt 0:00:30]} 39. Rb8 {[%emt 0:00:30]} 1-0